bitfinex/quotes_SOLUSD_20251127
["timestamp","ask_amount","ask_price","bid_price","bid_amount"]
[1764251467367,0.75,141.37,141.36,9.22767334]
[1764251470966,0.75,141.37,141.36,18.03761826]
[1764251471559,0.75,141.37,141.36,7.07413695]
[1764251471765,0.75,141.37,141.36,9.22767334]
[1764251473369,0.75,141.37,141.36,18.03761826]
[1764251474576,0.8,141.37,141.36,18.03761826]
[1764251474877,0.1,141.37,141.36,18.03761826]
[1764251478173,0.8,141.37,141.36,15.88408187]
[1764251478476,0.8,141.37,141.33,9.2289631]
[1764251478665,7.87368043,141.37,141.32,7.0759167]
[1764251478859,3.12,141.36,141.32,9.22945309]
[1764251479061,3.82,141.36,141.32,9.22945309]
[1764251479268,0.7,141.35,141.32,9.22945309]
[1764251479451,0.7,141.35,141.33,2.15353639]
[1764251479875,0.7,141.35,141.32,9.22945309]
[1764251480284,0.7,141.35,141.32,9.22952016]
[1764251482391,0.7,141.35,141.32,7.07598377]
[1764251483282,0.7,141.35,141.32,2.15353639]
[1764251484386,0.7,141.35,141.33,7.07563857]
[1764251485183,0.7,141.35,141.32,9.22947384]
[1764251488092,0.7,141.35,141.33,2.15353639]
[1764251488265,3.82,141.36,141.34,2.15353639]
[1764251488473,3.82,141.36,141.33,8.80994492]
[1764251488670,3.12,141.36,141.35,2.15353639]
[1764251489096,3.82,141.36,141.35,2.15353639]
[1764251490890,3.82,141.36,141.33,8.80994492]
[1764251491200,3.82,141.36,141.34,2.15353639]
[1764251491201,0.7,141.35,141.34,2.15353639]
[1764251492495,0.7,141.35,141.34,9.22867435]
[1764251492694,0.7,141.35,141.34,7.07513796]
[1764251492871,0.7,141.35,141.34,9.22867435]
[1764251493699,0.7,141.35,141.34,7.07513796]
[1764251494772,0.7,141.35,141.34,9.22867435]
[1764251501201,0.7,141.35,141.34,7.07513796]
[1764251503406,0.7,141.35,141.33,2.15353639]
[1764251504103,3.82,141.35,141.33,2.15353639]
[1764251504293,0.72,141.34,141.33,2.15353639]
[1764251504705,0.72,141.34,141.33,9.22917496]
[1764251506106,0.1,141.37,141.33,26.9182714]
[1764251506409,0.72,141.35,141.34,2.15353639]
[1764251507306,0.72,141.35,141.34,9.22867435]
[1764251508392,3.12,141.36,141.34,9.22867435]
[1764251508709,3.84,141.36,141.34,9.22867435]
[1764251509605,0.72,141.35,141.34,9.22867435]
[1764251514915,0.72,141.35,141.33,17.68909644]
[1764251515120,0.72,141.35,141.34,2.15353639]
[1764251517012,0.72,141.35,141.34,9.22867435]
[1764251517823,3.84,141.36,141.34,9.22867435]
[1764251518123,3.84,141.36,141.35,2.15353639]
[1764251519400,0.1,141.37,141.35,9.72817381]
[1764251519600,0.1,141.37,141.36,2.15353639]
[1764251520418,0.82,141.37,141.32,24.76587367]
[1764251520608,7.89365626,141.37,141.32,9.22967564]
[1764251520822,2.15353639,141.36,141.31,2.15353639]
[1764251521014,2.87353639,141.36,141.31,2.15353639]
[1764251521318,7.79474229,141.35,141.31,7.07649783]
[1764251521518,3.12,141.34,141.31,9.23003422]
[1764251521821,3.84,141.34,141.31,9.23003422]
[1764251522017,0.72,141.33,141.31,9.23003422]
[1764251522220,3.12,141.32,141.31,9.23003422]
[1764251522425,3.84,141.33,141.31,9.23003422]
[1764251522719,3.12,141.33,141.32,2.15353639]
[1764251522921,0.72,141.36,141.32,10.96348131]
[1764251523103,0.82,141.37,141.35,2.15353639]
[1764251523298,0.1,141.37,141.36,9.22767334]
[1764251523499,3.94,141.37,141.36,9.22767334]
[1764251523801,3.22,141.37,141.36,18.03761826]
[1764251524399,0.1,141.37,141.36,18.53761826]
[1764251524598,0.1,141.4,141.38,8.80994492]
[1764251524810,0.1,141.4,141.39,6.72546888]
[1764251525014,0.1,141.4,141.39,3.36273444]
[1764251525525,0.1,141.4,141.39,10.43537041]
[1764251528709,0.1,141.4,141.39,19.24531533]
[1764251529413,0.1,141.4,141.39,22.60804977]
[1764251530033,0.1,141.4,141.39,23.10804977]
[1764251530230,0.1,141.41,141.4,8.80994492]
[1764251530402,0.1,141.41,141.4,16.0354138]
[1764251530603,0.1,141.41,141.4,15.5354138]
[1764251532222,0.1,141.41,141.4,22.60754958]
[1764251532428,0.1,141.41,141.4,23.10754958]
[1764251537628,0.1,141.41,141.4,22.60754958]
[1764251539726,0.1,141.43,141.42,16.308864]
[1764251539913,0.1,141.45,141.43,8.80994492]
[1764251540113,0.66,141.48,141.45,8.80994492]
[1764251540313,0.66,141.48,141.47,13.79410534]
[1764251541224,0.66,141.48,141.47,3.36273444]
[1764251542231,0.66,141.48,141.47,10.4313709]
[1764251543141,0.66,141.48,141.47,3.36273444]
[1764251544817,0.66,141.48,141.47,10.4313709]
[1764251545012,0.66,141.48,141.47,3.36273444]
[1764251545737,0.66,141.48,141.44,7.06997251]
[1764251545938,0.66,141.48,141.46,3.36273444]
[1764251546236,16.968864,141.48,141.46,3.36273444]
[1764251546719,0.66,141.47,141.46,3.36273444]
[1764251546920,0.66,141.47,141.43,7.07035176]
[1764251547236,3.12,141.46,141.43,7.07035176]
[1764251547609,0.66,141.45,141.43,7.07035176]
[1764251547819,0.66,141.45,141.42,7.07100132]
[1764251548235,0.66,141.45,141.44,3.36273444]
[1764251551219,3.78,141.45,141.44,3.36273444]
[1764251551921,3.78,141.45,141.41,8.80994492]
[1764251552137,3.12,141.45,141.44,3.36273444]
[1764251552635,0.1,141.49,141.44,3.36273444]
[1764251552945,0.1,141.49,141.46,24.74197652]
[1764251553132,0.76,141.49,141.48,3.36273444]
[1764251553818,7.82769222,141.49,141.43,16.308864]
[1764251554024,7.82769222,141.49,141.47,3.36273444]
[1764251554221,0.66,141.48,141.47,3.36273444]
[1764251560850,7.72818433,141.48,141.42,8.80994492]
[1764251561159,0.66,141.48,141.47,3.36273444]
[1764251561343,3.12,141.48,141.47,3.36273444]
[1764251561972,3.84,141.48,141.47,3.36273444]
[1764251564452,0.1,141.49,141.47,10.4313709]
[1764251564752,0.1,141.51,141.47,10.4313709]
[1764251564753,0.1,141.51,141.48,28.98154336]
[1764251564954,0.1,141.56,141.51,25.11880892]
[1764251565155,0.1,141.56,141.53,8.80994492]
[1764251565449,0.1,141.56,141.55,3.36273444]
[1764251565756,3.12,141.59,141.55,12.17267936]
[1764251566052,3.84,141.59,141.58,3.36273444]
[1764251576560,10.90264566,141.59,141.57,3.36273444]
[1764251576864,0.22,141.58,141.57,3.36273444]
[1764251577759,0.22,141.58,141.54,10.42767212]
[1764251577957,0.22,141.58,141.57,3.36273444]
[1764251579843,7.28349959,141.58,141.51,0.7]
[1764251580037,7.28349959,141.58,141.56,3.36273444]
[1764251580257,0.72,141.57,141.53,3.36273444]
[1764251580455,3.12,141.56,141.53,3.36273444]
[1764251580952,0.72,141.55,141.53,3.36273444]
[1764251582139,7.78509216,141.55,141.53,3.36273444]
[1764251582545,0.72,141.54,141.51,7.06662515]
[1764251582744,3.12,141.53,141.5,7.06695371]
[1764251583152,3.84,141.53,141.5,7.76695371]
[1764251583349,3.12,141.53,141.5,7.06695371]
[1764251583668,3.12,141.53,141.5,7.76695371]
[1764251583863,0.72,141.53,141.5,7.76695371]
[1764251584069,3.12,141.52,141.5,7.76695371]
[1764251584471,3.12,141.52,141.51,0.7]
[1764251584874,3.12,141.52,141.51,9.50994492]
[1764251585059,0.72,141.56,141.52,8.80994492]
[1764251585260,3.12,141.55,141.52,9.50994492]
[1764251585556,3.12,141.56,141.54,10.7428666]
[1764251585756,3.12,141.56,141.55,2.14857332]
[1764251585957,3.12,141.56,141.55,2.84857332]
[1764251586158,3.12,141.57,141.55,2.84857332]
[1764251586363,3.12,141.57,141.56,2.84857332]
[1764251586573,3.12,141.57,141.56,9.91271573]
[1764251586872,3.12,141.57,141.56,9.21271573]
[1764251587577,0.72,141.59,141.56,9.21271573]
[1764251587868,3.12,141.58,141.56,7.06414241]
[1764251588264,3.84,141.58,141.56,6.80734241]
[1764251588569,3.84,141.58,141.54,0.7]
[1764251588949,3.84,141.58,141.57,2.14857332]
[1764251590568,3.84,141.58,141.53,16.53538641]
[1764251590874,3.12,141.58,141.54,0.66]
[1764251591171,3.12,141.58,141.57,2.14857332]
[1764251593060,3.79,141.58,141.57,2.14857332]
[1764251593868,3.12,141.58,141.57,2.14857332]
[1764251594074,3.79,141.58,141.57,2.14857332]
[1764251595289,3.79,141.58,141.55,7.72442803]
[1764251595290,10.85314451,141.58,141.53,16.53524563]
[1764251595462,16.978864,141.57,141.49,0.66]
[1764251595663,0.67,141.56,141.53,2.14857332]
[1764251595986,3.12,141.55,141.53,2.14857332]
[1764251596485,0.67,141.54,141.53,2.14857332]
[1764251596687,0.67,141.54,141.52,2.14857332]
[1764251597459,7.73520327,141.54,141.52,2.14857332]
[1764251597660,0.67,141.54,141.49,7.06734824]
[1764251597980,0.67,141.53,141.48,0.66]
[1764251598183,3.12,141.52,141.5,2.14857332]
[1764251598559,0.67,141.51,141.5,2.14857332]
[1764251599175,0.67,141.51,141.49,2.14857332]
[1764251599672,7.7366743,141.51,141.49,2.14857332]
[1764251600387,0.67,141.5,141.49,2.14857332]
[1764251601591,0.67,141.52,141.49,2.14857332]
[1764251601766,3.79,141.51,141.5,2.14857332]
[1764251601966,3.79,141.51,141.49,2.14857332]
[1764251602279,0.67,141.5,141.45,2.14857332]
[1764251602483,0.67,141.5,141.46,2.14857332]
[1764251603185,0.67,141.5,141.47,2.14857332]
[1764251603784,0.67,141.5,141.48,2.14857332]
[1764251604202,16.978864,141.52,141.49,2.14857332]
[1764251604486,3.12,141.51,141.5,2.14857332]
[1764251606091,3.79,141.51,141.49,2.14857332]
[1764251608479,3.79,141.51,141.49,9.21618508]
[1764251609075,3.79,141.51,141.48,7.72792657]
[1764251609274,3.79,141.51,141.49,2.14857332]
[1764251609596,0.67,141.5,141.47,2.14857332]
[1764251610174,0.67,141.5,141.48,2.14857332]
[1764251610999,0.67,141.5,141.45,0.66]
[1764251611292,0.67,141.5,141.48,2.14857332]
[1764251611507,0.67,141.5,141.44,24.74521033]
[1764251611508,0.67,141.5,141.49,2.14857332]
[1764251611678,7.7371378,141.5,141.48,2.14857332]
[1764251612402,3.79,141.49,141.48,2.14857332]
[1764251613195,3.12,141.49,141.48,2.14857332]
[1764251613577,16.978864,141.51,141.48,9.87671015]
[1764251613776,3.12,141.5,141.49,2.14857332]
[1764251616592,3.12,141.5,141.48,9.21669931]
[1764251616793,3.12,141.5,141.48,9.87669931]
[1764251617202,3.12,141.5,141.48,2.80857332]
[1764251617602,3.12,141.5,141.48,2.14857332]
[1764251618082,3.79,141.5,141.48,2.14857332]
[1764251618707,3.12,141.5,141.48,2.14857332]
[1764251619089,3.12,141.5,141.48,2.80857332]
[1764251620409,3.8,141.5,141.48,2.14857332]
[1764251620589,10.86722158,141.5,141.48,2.14857332]
[1764251621007,3.8,141.5,141.48,2.14857332]
[1764251621482,3.12,141.5,141.48,2.14857332]
[1764251621686,3.12,141.5,141.49,2.80857332]
[1764251622310,3.12,141.5,141.49,2.14857332]
[1764251623105,3.12,141.5,141.49,2.80857332]
[1764251623306,7.74618476,141.52,141.49,2.80857332]
[1764251623608,3.12,141.5,141.49,0.66]
[1764251624391,3.12,141.5,141.48,0.66]
[1764251624586,3.12,141.5,141.49,2.80857332]
[1764251625590,3.12,141.5,141.49,9.8762106]
[1764251629816,3.12,141.5,141.43,8.80994492]
[1764251629817,29.32457512,141.5,141.43,8.80994492]
[1764251629996,16.308864,141.47,141.41,7.27146194]
[1764251630194,3.12,141.46,141.42,2.14857332]
[1764251630402,3.12,141.46,141.41,0.2]
[1764251630403,3.8,141.46,141.43,2.14857332]
[1764251630604,0.68,141.45,141.43,2.14857332]
[1764251631692,3.12,141.44,141.43,2.14857332]
[1764251631893,3.12,141.44,141.42,7.07105966]
[1764251632190,3.12,141.43,141.42,0.66]
[1764251633618,3.12,141.43,141.42,2.14857332]
[1764251633992,3.12,141.43,141.42,0.66]
[1764251634188,3.12,141.43,141.42,2.80857332]
[1764251634807,3.12,141.43,141.42,9.87970894]
[1764251634988,0.68,141.45,141.42,9.87970894]
[1764251635200,3.12,141.44,141.42,9.87970894]
[1764251635815,3.12,141.44,141.43,2.14857332]
[1764251636715,3.12,141.44,141.43,9.21920897]
[1764251637220,3.12,141.44,141.43,2.14857332]
[1764251637719,16.988864,141.48,141.43,9.87920897]
[1764251637904,3.8,141.47,141.46,2.14857332]
[1764251638310,3.12,141.47,141.46,2.14857332]
[1764251638990,3.8,141.47,141.45,2.14857332]
[1764251640100,3.8,141.47,141.44,9.21859556]
[1764251641706,3.8,141.47,141.44,2.14857332]
[1764251642491,10.18872455,141.47,141.44,2.14857332]
[1764251642692,10.18872455,141.47,141.43,0.66]
[1764251642693,0.68,141.46,141.43,2.14857332]
[1764251642894,0.68,141.46,141.42,2.14857332]
[1764251643095,16.988864,141.48,141.45,2.14857332]
[1764251643311,3.8,141.47,141.46,2.14857332]
[1764251644096,3.8,141.47,141.45,2.14857332]
[1764251644316,3.8,141.47,141.41,25.61072176]
[1764251644317,0.68,141.46,141.41,25.61072176]
[1764251644617,7.06963591,141.45,141.42,2.14857332]
[1764251644797,3.12,141.44,141.42,2.14857332]
[1764251644998,3.8,141.44,141.43,2.14857332]
[1764251645197,0.68,141.47,141.43,2.14857332]
[1764251645398,3.8,141.46,141.44,2.14857332]
[1764251646530,3.8,141.46,141.44,3.36193417]
[1764251647620,0.68,141.47,141.45,3.36193417]
[1764251647809,3.12,141.46,141.45,3.36193417]
[1764251648932,3.12,141.46,141.44,0.66]
[1764251649229,0.68,141.45,141.42,15.88091796]
[1764251649404,0.68,141.45,141.44,3.36193417]
[1764251649808,3.82,141.46,141.44,3.36193417]
[1764251653039,3.82,141.46,141.43,7.07033955]
[1764251653324,3.82,141.46,141.44,3.36193417]
[1764251654025,3.12,141.46,141.43,7.07033955]
[1764251654216,0.71,141.45,141.42,15.88085363]
[1764251654524,0.71,141.45,141.41,0.2]
[1764251654729,0.71,141.45,141.41,3.56193417]
[1764251655109,7.77965129,141.45,141.42,3.36193417]
[1764251655518,0.71,141.44,141.42,3.36193417]
[1764251655715,3.12,141.43,141.42,3.36193417]
[1764251661709,0.71,141.46,141.42,11.12306979]
[1764251662031,0.71,141.47,141.45,3.36193417]
[1764251662211,0.71,141.47,141.46,3.36193417]
[1764251662529,3.83,141.47,141.46,3.36193417]
[1764251664835,3.83,141.47,141.45,3.36193417]
[1764251666236,3.83,141.47,141.44,0.69]
[1764251666547,0.71,141.46,141.42,7.76090593]
[1764251666711,0.71,141.46,141.44,3.36193417]
[1764251667538,0.71,141.46,141.42,7.76090593]
[1764251667744,0.71,141.46,141.44,3.36193417]
[1764251669141,0.71,141.46,141.45,3.36193417]
[1764251669817,0.71,141.46,141.44,3.36193417]
[1764251670640,0.71,141.46,141.45,3.36193417]
[1764251670838,3.83,141.46,141.45,3.36193417]
[1764251671424,24.08733574,141.48,141.45,3.36193417]
[1764251671624,3.12,141.46,141.45,3.36193417]
[1764251672645,0.71,141.47,141.45,3.36193417]
[1764251672843,3.12,141.46,141.45,3.36193417]
[1764251681430,3.12,141.46,141.44,7.06984895]
[1764251681633,3.82,141.46,141.45,3.36193417]
[1764251682436,3.12,141.46,141.45,3.36193417]
[1764251683146,3.12,141.46,141.45,4.06193417]
[1764251683778,24.07657784,141.49,141.45,11.13157008]
[1764251683956,3.82,141.48,141.47,3.36193417]
[1764251688151,0.7,141.48,141.47,3.36193417]
[1764251688338,3.82,141.48,141.47,3.36193417]
[1764251692067,3.82,141.48,141.44,7.06994865]
[1764251692252,10.8881503,141.48,141.46,3.36193417]
[1764251692454,16.308864,141.5,141.47,3.36193417]
[1764251692661,17.008864,141.5,141.49,3.36193417]
[1764251692862,20.128864,141.5,141.49,3.36193417]
[1764251694565,27.1960018,141.5,141.49,3.36193417]
[1764251694866,20.128864,141.5,141.49,3.36193417]
[1764251697264,17.008864,141.5,141.49,3.36193417]
[1764251697462,20.128864,141.5,141.49,3.36193417]
[1764251698275,19.428864,141.5,141.49,3.36193417]
[1764251698474,20.128864,141.5,141.49,3.36193417]
[1764251698689,19.428864,141.5,141.49,3.36193417]
[1764251698976,3.82,141.5,141.49,3.36193417]
[1764251699364,3.12,141.5,141.49,3.36193417]
[1764251699869,3.12,141.5,141.49,11.12957145]
[1764251700250,0.7,141.54,141.49,11.12957145]
[1764251700469,0.7,141.58,141.53,6.72386834]
[1764251700666,3.36193417,141.68,141.5,0.7]
[1764251700667,3.82,141.57,141.52,7.06572913]
[1764251700971,16.308864,141.56,141.54,3.36193417]
[1764251701153,17.008864,141.56,141.54,3.36193417]
[1764251701471,0.7,141.55,141.54,3.36193417]
[1764251701654,0.7,141.55,141.53,3.36193417]
[1764251701965,3.12,141.54,141.53,3.36193417]
[1764251702483,3.12,141.54,141.52,3.36193417]
[1764251702484,20.128864,141.54,141.52,3.36193417]
[1764251702686,7.76593761,141.53,141.51,3.36193417]
[1764251702986,7.76593761,141.53,141.5,3.36193417]
[1764251703165,0.7,141.52,141.49,3.36193417]
[1764251703365,3.12,141.51,141.49,3.36193417]
[1764251703889,0.7,141.5,141.49,3.36193417]
[1764251704466,3.12,141.51,141.49,3.36193417]
[1764251704676,0.7,141.52,141.5,3.36193417]
[1764251704876,3.12,141.51,141.48,7.76807094]
[1764251705387,0.7,141.5,141.47,7.06843109]
[1764251705687,0.7,141.5,141.47,7.76843109]
[1764251705985,0.7,141.5,141.49,3.36193417]
[1764251707086,7.76714011,141.5,141.48,3.36193417]
[1764251707385,7.76714011,141.5,141.46,7.06907008]
[1764251707386,0.7,141.5,141.49,3.36193417]
[1764251708378,7.7671378,141.5,141.49,3.36193417]
[1764251708572,7.7671378,141.5,141.49,2.15041418]
[1764251710089,7.7671378,141.5,141.48,2.15041418]
[1764251710282,0.68,141.49,141.46,2.15041418]
[1764251710480,0.68,141.49,141.41,9.71994492]
[1764251710481,16.308864,141.47,141.41,9.71994492]
[1764251710680,16.308864,141.47,141.43,2.15041418]
[1764251711000,0.68,141.46,141.43,2.15041418]
[1764251711188,3.12,141.45,141.43,2.15041418]
[1764251711590,3.84,141.45,141.43,2.15041418]
[1764251712297,16.308864,141.47,141.44,0.7]
[1764251712467,19.428864,141.46,141.42,7.07113562]
[1764251712668,19.428864,141.46,141.43,0.7]
[1764251713587,19.428864,141.46,141.45,2.15041418]
[1764251713986,20.148864,141.46,141.45,2.15041418]
[1764251714790,20.148864,141.46,141.43,0.7]
[1764251715187,20.148864,141.46,141.45,2.15041418]
[1764251717195,3.12,141.46,141.45,2.15041418]
[1764251719284,33.97795722,141.49,141.45,2.85041418]
[1764251719285,23.37657095,141.49,141.45,2.85041418]
[1764251719487,3.12,141.48,141.47,2.15041418]
[1764251723590,3.84,141.48,141.47,2.15041418]
[1764251723901,3.12,141.48,141.47,2.15041418]
[1764251724797,10.90813683,141.48,141.41,0.2]
[1764251724998,10.90813683,141.48,141.45,2.15041418]
[1764251725206,3.84,141.48,141.46,2.15041418]
[1764251725495,3.84,141.48,141.47,2.15041418]
[1764251725803,3.12,141.48,141.47,2.15041418]
[1764251726098,3.84,141.48,141.47,2.15041418]
[1764251726682,10.90813683,141.48,141.46,2.15041418]
[1764251726996,3.84,141.47,141.46,2.15041418]
[1764251730494,3.12,141.47,141.46,2.15041418]
[1764251732605,3.12,141.47,141.44,7.76998918]
[1764251732814,3.12,141.47,141.46,2.15041418]
[1764251733295,3.12,141.47,141.44,7.76998918]
[1764251733496,3.12,141.47,141.46,2.15041418]
[1764251733708,10.90863646,141.47,141.45,2.15041418]
[1764251734209,10.18863646,141.47,141.43,7.77040952]
[1764251734414,0.72,141.46,141.43,7.77040952]
[1764251734598,0.72,141.46,141.44,2.15041418]
[1764251734910,3.84,141.47,141.45,2.15041418]
[1764251737487,10.9086409,141.47,141.45,2.15041418]
[1764251737910,3.84,141.47,141.45,2.15041418]
[1764251738508,3.84,141.47,141.46,2.15041418]
[1764251739518,0.72,141.47,141.46,2.15041418]
[1764251739694,3.84,141.47,141.46,2.15041418]
[1764251740401,3.12,141.47,141.46,9.88955033]
[1764251742105,0.67,141.52,141.46,27.5623907]
[1764251742293,3.12,141.51,141.49,2.15041418]
[1764251742498,19.428864,141.51,141.49,2.15041418]
[1764251742694,20.098864,141.51,141.49,2.15041418]
[1764251742899,20.098864,141.51,141.5,2.15041418]
[1764251743400,19.428864,141.51,141.5,2.15041418]
[1764251743614,3.79,141.51,141.5,2.15041418]
[1764251744198,3.12,141.51,141.5,2.15041418]
[1764251744596,3.79,141.51,141.5,2.15041418]
[1764251748718,10.8566384,141.51,141.5,2.15041418]
[1764251748921,10.8566384,141.51,141.49,2.15041418]
[1764251749225,3.12,141.5,141.49,2.15041418]
[1764251749928,7.73671482,141.51,141.49,2.15041418]
[1764251750100,3.12,141.5,141.49,2.15041418]
[1764251750624,3.79,141.5,141.49,2.15041418]
[1764251751359,10.85715458,141.5,141.47,0.67]
[1764251751518,0.67,141.49,141.48,2.15041418]
[1764251757541,10.85715458,141.5,141.48,2.15041418]
[1764251757730,10.85715458,141.5,141.49,2.15041418]
[1764251758137,10.85715458,141.5,141.45,7.06948228]
[1764251758318,0.67,141.49,141.45,7.73948228]
[1764251758527,0.67,141.49,141.48,2.15041418]
[1764251759445,3.79,141.49,141.48,2.15041418]
[1764251759742,10.85773123,141.49,141.48,2.15041418]
[1764251760638,3.12,141.49,141.48,2.15041418]
[1764251760850,7.7348697,141.55,141.48,2.82041418]
[1764251761017,1.78,141.54,141.53,2.15041418]
[1764251761342,18.758864,141.54,141.53,2.15041418]
[1764251761719,16.308864,141.53,141.52,2.15041418]
[1764251762243,16.978864,141.53,141.52,2.15041418]
[1764251763815,16.308864,141.53,141.52,2.15041418]
[1764251765042,8.8455692,141.54,141.52,2.15041418]
[1764251765340,16.308864,141.53,141.51,0.67]
[1764251765932,24.0446794,141.53,141.5,0.67]
[1764251766326,24.0446794,141.53,141.52,2.15041418]
[1764251766633,16.308864,141.53,141.52,2.15041418]
[1764251768329,9.51541913,141.54,141.52,2.15041418]
[1764251768531,25.82428313,141.54,141.53,3.35793766]
[1764251768845,9.51541913,141.54,141.53,3.35793766]
[1764251769049,0.67,141.56,141.53,4.02793766]
[1764251769220,3.12,141.55,141.53,0.67]
[1764251769419,3.12,141.54,141.53,0.67]
[1764251770433,3.12,141.54,141.53,11.09337709]
[1764251770931,24.08235002,141.58,141.53,11.09337709]
[1764251771133,3.12,141.57,141.56,3.35793766]
[1764251771943,3.83,141.57,141.55,3.35793766]
[1764251772146,0.71,141.56,141.55,3.35793766]
[1764251772442,10.18364514,141.57,141.55,3.35793766]
[1764251772640,10.89364514,141.57,141.55,3.35793766]
[1764251773150,3.83,141.57,141.55,3.35793766]
[1764251774844,3.12,141.57,141.56,3.35793766]
[1764251775048,3.83,141.57,141.56,3.35793766]
[1764251777154,10.89364342,141.57,141.56,3.35793766]
[1764251778054,3.83,141.57,141.56,3.35793766]
[1764251778863,3.12,141.57,141.56,3.35793766]
[1764251779559,3.83,141.57,141.56,3.35793766]
[1764251782050,3.12,141.57,141.56,3.35793766]
[1764251782251,3.83,141.57,141.55,7.0645554]
[1764251782458,3.83,141.57,141.56,3.35793766]
[1764251783830,0.71,141.57,141.56,3.35793766]
[1764251784034,3.83,141.57,141.56,3.35793766]
[1764251785438,3.12,141.57,141.56,3.35793766]
[1764251786562,3.83,141.57,141.56,3.35793766]
[1764251789547,3.83,141.57,141.55,3.35793766]
[1764251790157,3.83,141.57,141.56,3.35793766]
[1764251791265,3.83,141.57,141.51,8.80994492]
[1764251791442,0.71,141.56,141.51,18.38613363]
[1764251791640,0.71,141.56,141.54,3.35793766]
[1764251792055,0.71,141.56,141.52,0.72]
[1764251792256,0.71,141.56,141.54,3.35793766]
[1764251794665,0.71,141.56,141.55,3.35793766]
[1764251794855,3.83,141.56,141.55,3.35793766]
[1764251797462,3.12,141.56,141.55,3.35793766]
[1764251799065,7.77332454,141.58,141.55,4.07793766]
[1764251799369,7.77332454,141.58,141.57,3.35793766]
[1764251799544,10.89332454,141.58,141.57,3.35793766]
[1764251800756,10.89332454,141.58,141.56,3.35793766]
[1764251800958,0.69,141.57,141.56,3.35793766]
[1764251802651,7.75364342,141.57,141.56,3.35793766]
[1764251804359,7.75364342,141.57,141.55,3.35793766]
[1764251804561,0.69,141.56,141.51,0.68]
[1764251804767,3.12,141.55,141.54,3.35793766]
[1764251806372,3.81,141.55,141.54,3.35793766]
[1764251807187,3.81,141.55,141.44,12.75514815]
[1764251807188,28.53624513,141.55,141.48,0.68]
[1764251807358,0.69,141.54,141.5,3.35793766]
[1764251807668,0.69,141.54,141.48,0.68]
[1764251807975,16.308864,141.52,141.49,3.35793766]
[1764251808180,10.1866384,141.51,141.5,3.35793766]
[1764251808369,10.8766384,141.51,141.5,3.35793766]
[1764251808572,10.8766384,141.51,141.49,3.35793766]
[1764251809264,10.8766384,141.51,141.5,3.35793766]
[1764251809577,10.1866384,141.51,141.47,7.06844347]
[1764251809891,0.69,141.5,141.47,3.35793766]
[1764251810182,7.06763728,141.49,141.46,3.35793766]
[1764251810363,3.12,141.48,141.46,3.35793766]
[1764251810559,3.81,141.48,141.45,3.35793766]
[1764251810761,0.69,141.47,141.44,3.35793766]
[1764251811466,16.308864,141.45,141.41,0.2]
[1764251811665,19.428864,141.44,141.41,3.55793766]
[1764251812071,0.69,141.43,141.41,3.55793766]
[1764251812466,7.76063565,141.43,141.41,3.55793766]
[1764251812983,0.69,141.42,141.41,0.2]
[1764251814162,7.76113562,141.42,141.41,0.2]
[1764251819085,15.51521526,141.42,141.41,0.2]
[1764251819278,18.63521526,141.42,141.41,0.2]
[1764251820194,7.75407964,141.42,141.41,0.2]
[1764251820379,3.12,141.42,141.41,3.55793766]
[1764251820562,7.76082823,141.43,141.41,3.55793766]
[1764251820763,7.76082823,141.43,141.42,3.35793766]
[1764251820969,10.19082823,141.43,141.42,3.35793766]
[1764251821176,10.88082823,141.43,141.41,3.55793766]
[1764251821470,10.88082823,141.43,141.42,3.35793766]
[1764251821665,10.88082823,141.43,141.41,0.2]
[1764251821666,0.69,141.42,141.41,0.2]